Cogmind - Beta 16.1 @@@ ROGUE MODE // 2026.02.15 @ 07:45:25 Player: naththebg Result: Destroyed by Y-54 Guardian with Flak Gun Performance ------------- Evolutions (0) 0 Regions Visited (3) 600 Robots Destroyed (43) 215 Value Destroyed (965) 965 Prototype IDs (17) 340 Alien Tech Used (0) 0 Bonus (0) 0 TOTAL SCORE: 2120 Bonus ------- None Cogmind --------- Core Integrity 0/250 Matter 121/300 Energy 47/100 System Corruption 2% Temperature Warning (308) Movement Core (1000) Ox19 Location -7/Recycling Parts ------- > --- POWER (1) -------- Subdweller Power Source > --- PROPULSION (2) --- Light Treads > --- UTILITY (2) ------ High-capacity Storage Unit Core Shielding > --- WEAPON (2) ------- Subdweller Beam Cannon Improved Light Cannon (fused) > --- INVENTORY (20) --- Subdweller Power Source Light Treads Armored Wheel Armored Wheel Armored Wheel Armored Wheel Subdweller Monowheel Subdweller Monowheel High-capacity Matter Pod (200) High-capacity Matter Pod (200) Scrap Shield Subdweller Shrapnel Launcher 1B-0RG's Assimilator Multitool Peak State ------------ > --- POWER ------------ Subdweller Power Source > --- PROPULSION ------- Light Treads Subdweller Monowheel > --- UTILITY ---------- High-capacity Storage Unit Core Shielding > --- WEAPON ----------- Subdweller Beam Cannon Subdweller Beam Cannon > --- INVENTORY -------- Subdweller Power Source Light Treads Armored Wheel Armored Wheel Armored Wheel Armored Wheel Subdweller Monowheel Subdweller Monowheel High-capacity Matter Pod High-capacity Matter Pod Scrap Shield Improved Light Cannon Subdweller Shrapnel Launcher 1B-0RG's Assimilator Multitool [Rating: 20] Favorites ----------- Power Subdweller Power Source Engine Subdweller Power Source Propulsion Light Treads Treads Light Treads Leg Aluminum Leg Wheel Subdweller Monowheel Utility Core Shielding Storage High-capacity Storage Unit Processor Transport Network Coupler Protection Core Shielding Weapon Subdweller Beam Cannon Energy Gun Medium Laser Energy Cannon Subdweller Beam Cannon Ballistic Gun Assault Rifle Ballistic Cannon Improved Light Cannon Launcher Subdweller Shrapnel Launcher Build | -11 -10 -10 -7 ------- Run | Yrd Mat Sub Rec Slots Evolved . | . . . . Power . | . . . . Propulsion . | . . . . Utility . | . . . . Weapon . | . . . . Parts Attached 40 | 6 14 19 1 Power 7 | 1 2 4 . Engine 7 | 1 2 4 . Core . | . . . . Reactor . | . . . . Propulsion 11 | 2 5 4 . Treads 4 | . 2 2 . Leg 5 | 2 3 . . Wheel 2 | . . 2 . Hover . | . . . . Flight . | . . . . Utility 6 | 1 4 1 . Device . | . . . . Storage 4 | 1 2 1 . Processor 1 | . 1 . . Hackware . | . . . . Protection 1 | . 1 . . Artifact . | . . . . Weapon 16 | 2 3 10 1 Energy Gun 6 | 1 3 2 . Energy Cannon 4 | . . 3 1 Ballistic Gun 2 | 1 . 1 . Ballistic Cannon 3 | . . 3 . Launcher 1 | . . 1 . Special Weapon . | . . . . Impact Weapon . | . . . . Slashing Weapon . | . . . . Piercing Weapon . | . . . . Special Melee Weapon . | . . . . Unidentified Prototypes . | . . . . Parts Lost 2 | . . . 2 Power . | . . . . Propulsion 1 | . . . 1 Utility . | . . . . Weapon 1 | . . . 1 Highest Loss Streak 2 | . . . 2 To Critical Strikes . | . . . . Average Backups 13 | 3 9 16 14 Power . | . . 1 1 Propulsion 6 | 2 5 7 7 Utility 2 | . . 3 3 Weapon 3 | . 2 3 1 Tool/Special . | . . . . Unused Backups 26 | . 7 7 12 Power 1 | . . . 1 Propulsion 10 | . 3 1 6 Utility 7 | . 1 3 3 Weapon 6 | . 3 3 . Tool/Special 2 | . . . 2 Average Slot Usage (%) 99 | . 98 100 95 Engine 14 | . 14 14 14 Treads 12 | . 5 16 14 Leg 7 | . 22 . . Wheel 7 | . . 11 14 Storage 14 | . 14 14 14 Protection 13 | . 12 14 14 Energy Gun 10 | . 21 5 . Energy Cannon 7 | . . 11 9 Ballistic Gun 2 | . 6 . . Ballistic Cannon 6 | . . 9 14 Peak Build Rating 20 | 6 9 20 20 Average Rating 13 | 4 7 16 19 On Entrance 8 | . 6 9 20 Avg Prop Armor Cover (%) 14 | . . 14 . Naked Turns . | . . . . Heaviest Build 62 | 11 30 62 58 Greatest Support 40 | 20 40 40 20 Greatest Overweight (x) 3 | 1 . 3 2 Average Overweight (x) 1 | . . 1 2 Largest Inventory Capacity 20 | 8 15 20 20 Average Capacity 16 | 7 9 19 20 Most Carried 20 | 6 15 20 20 Average Carried 15 | 4 9 19 19 Final Capacity 20 | 8 15 20 20 Final Carried 20 | 6 15 20 19 Class Distribution -------------------- 78% | Mutant 21% | Scavenger-Mutant Dominant Class ---------------- Mutant | -10/Materials Mutant | -10/Subcaves Mutant | -7/Recycling Resources | -11 -10 -10 -7 ----------- Run | Yrd Mat Sub Rec Matter Collected 1407 | 236 624 547 . Remotely . | . . . . Salvage Created 1320 | . 671 649 . Parts 103 | . 53 50 . Haulers Intercepted 2 | . 2 . . Recyclers Shooed 3 | . 3 . . Parts Field Recycled . | . . . . Retrieved Matter . | . . . . Parts Self-Destructed 10 | . . 10 . Prevented . | . . . . Parts Restored . | . . . . Kills | -11 -10 -10 -7 ------- Run | Yrd Mat Sub Rec Combat Hostiles Destroyed 30 | . 13 17 . Guns 17 | . 13 4 . Cannons 9 | . . 9 . AOE 4 | . . 4 . Classes Destroyed 11 | . 8 3 . Worker 2 | . 2 . . Tunneler 2 | . 2 . . Hauler 2 | . 2 . . Recycler 1 | . 1 . . Operator 1 | . 1 . . Turret 2 | . . 2 . Watcher 3 | . 3 . . Swarmer 12 | . 8 4 . Grunt 5 | . 5 . . Sentry 1 | . . 1 . Subdweller 12 | . . 12 . Best Kill Streak 6 | . 5 6 . Combat Bots Only 4 | . 4 4 . Max Kills in Single Turn 2 | . 2 2 . Gunslinging 1 | . 1 . . Exploded 2 | . . 2 . Melee . | . . . . Uniques/NPCs Destroyed . | . . . . Combat | -11 -10 -10 -7 -------- Run | Yrd Mat Sub Rec Hostile Shots Fired 208 | . 49 87 72 Missed 76 | . 9 34 33 Hits 132 | . 40 53 39 Projectile 132 | . 40 53 39 Critical Strikes 1 | . 1 . . Actively Blocked 1 | . . 1 . Damage Taken 1626 | . 383 943 300 Core 253 | . 58 139 56 Absorbed by Shields . | . . . . Redirected to Shielding 49 | . 4 32 13 Core Remaining (%) 100 | 100 . . . Volleys Fired 163 | . 69 85 9 Largest 2 | . 2 2 2 Hottest 160 | . 100 160 113 Shots Fired 279 | . 137 126 16 Gun 178 | . 137 41 . Cannon 96 | . . 80 16 Launcher 5 | . . 5 . Special . | . . . . Kinetic 115 | . 50 56 9 Thermal 164 | . 87 70 7 Explosive . | . . . . Electromagnetic . | . . . . Robot Hit Streak 16 | . 7 16 9 Robot Miss Streak 5 | . 5 3 1 Penetration Max . | . . . . Secondary Targets 3 | . 3 . . Max Gunslinging Chain 1 | . 1 . . Shots Hit Robots 146 | . 71 62 13 Core Hits 70 | . 37 32 1 Critical Kills 1 | . . 1 . Critical Parts Destroyed 1 | . 1 . . Critical Strikes 7 | . 2 4 1 Burn 1 | . 1 . . Destroy 3 | . 1 2 . Blast 3 | . . 2 1 Melee Attacks . | . . . . Impact . | . . . . Slashing . | . . . . Piercing . | . . . . Sneak Attacks . | . . . . Combat Hostiles . | . . . . Follow-up Attacks . | . . . . Damage Inflicted 3104 | 4 931 1854 315 Guns 1518 | . 892 626 . Cannons 1036 | . . 721 315 Explosions 507 | . . 507 . Melee . | . . . . Ramming 43 | 4 39 . . Kinetic 1586 | . 324 1111 151 Thermal 1475 | . 568 743 164 Explosive . | . . . . Electromagnetic . | . . . . Impact . | . . . . Slashing . | . . . . Piercing . | . . . . Highest Corruption 2 | . 2 2 2 Average Corruption 2 | . 2 2 2 Corruption Purged . | . . . . Corruption Blocked . | . . . . Effects 46 | . 8 37 1 Message Errors 9 | . . 9 . Matter Fused 12 | . 2 9 1 Heat Flow Errors 8 | . 2 6 . Energy Discharges 5 | . . 5 . Parts Fused 1 | . . 1 . Data Loss (minor) 6 | . 2 4 . Data Loss (major) 1 | . . 1 . Misfires 3 | . 1 2 . Alerts 1 | . 1 . . Overload Shots . | . . . . Overflow Damage 5 | . . 5 . Projectiles . | . . . . Explosions 5 | . . 5 . Melee . | . . . . Knockbacks 7 | . . 7 . Impact . | . . . . Kinetic 7 | . . 7 . Secondary . | . . . . Self-Inflicted Damage 23 | . . 23 . Shots 1 | . . 1 . Rammed . | . . . . Targets Rammed 6 | 1 5 . . Kicked 6 | 1 5 . . Crushed . | . . . . Highest Temperature 323 | . 279 166 323 Average Temperature 78 | . 71 62 191 Received Heat Transfer 477 | . 72 297 108 Effects 1 | . 1 . . Energy Bleed 1 | . 1 . . Siege Activations . | . . . . Martial Activations . | . . . . Shielding Activations . | . . . . Robots Disrupted . | . . . . Combat Hostiles . | . . . . Robots Corrupted . | . . . . Combat Hostiles . | . . . . Parts Fried . | . . . . Impact Corruptions . | . . . . Robots Melted . | . . . . Combat Hostiles . | . . . . Parts Melted 4 | . 2 2 . Heat Transferred 2729 | . 1574 933 222 Parts Sabotaged . | . . . . Parts Stolen . | . . . . Parts Stripped . | . . . . Power Chain Reactions . | . . . . Alert | -11 -10 -10 -7 ------- Run | Yrd Mat Sub Rec Maximum Alert Level . | . . . . Low Security (%) 100 | 100 100 . 100 Level 1 . | . . . . Level 2 . | . . . . Level 3 . | . . . . Level 4 . | . . . . Level 5 . | . . . . High Security . | . . . . Max Security . | . . . . Peak Influence 157 | . 157 . 33 Initial 32 | . . . 32 Average 21 | . 22 . 26 Influence Increases 580 | . 439 140 1 Destroy 0b10 Robot/C 400 | . 260 140 . Destroy 0b10 Robot/NC 55 | . 55 . . Destroy Leader 80 | . 80 . . Successful Hack 12 | . 12 . . Destroy Structure 3 | . 2 . 1 Lose Combat Pursuer 30 | . 30 . . Influence Decreases 577 | . 437 74 66 Entered New Map 38 | . . 2 36 Time Decay 397 | . 315 72 10 Lost Part 20 | . . . 20 Purge Threat 122 | . 122 . . Squads Dispatched 4 | . 4 . . Investigation 1 | . 1 . . Extermination . | . . . . Reinforcement 3 | . 3 . . Assault . | . . . . Garrison . | . . . . Intercept . | . . . . Searches Triggered . | . . . . Construction Impeded . | . . . . Haulers Reinforced . | . . . . Active Scanning Responses . | . . . . Cargo Convoy Interrupts . | . . . . Stealth | -11 -10 -10 -7 --------- Run | Yrd Mat Sub Rec Distress Signals 1 | . 1 . . Communications Jammed . | . . . . Distress Signals . | . . . . Times Spotted 48 | . 28 19 1 Peak Tracking Total 6 | . 5 6 1 Tactical Retreats 1 | . 1 . . Traps | -11 -10 -10 -7 ------- Run | Yrd Mat Sub Rec Traps Triggered 6 | . 4 2 . Indirectly . | . . . . Trap Hack Attempts . | . . . . Triggered . | . . . . Disarmed . | . . . . Reprogrammed . | . . . . Reused . | . . . . Traps Extracted . | . . . . Installed . | . . . . Triggered . | . . . . Machines | -11 -10 -10 -7 ---------- Run | Yrd Mat Sub Rec Machines Disabled 4 | . . 4 . Max in Single Turn 2 | . . 2 . Machines Repaired . | . . . . Machines Dismantled . | . . . . Machines Sabotaged . | . . . . Overloaded Fab Kills . | . . . . Hacking | -11 -10 -10 -7 --------- Run | Yrd Mat Sub Rec Machines Accessed 8 | . 7 1 . Terminals 5 | . 5 . . Fabricators . | . . . . Repair Stations . | . . . . Recycling Units 2 | . 2 . . Scanalyzers . | . . . . Garrison Access . | . . . . Total Hacks 21 | . 20 1 . Successful 11 | . 10 1 . Failed 10 | . 10 . . Catastrophic 1 | . 1 . . Database Lockouts . | . . . . Manual 3 | . 3 . . Terminals 16 | . 16 . . Fabricators . | . . . . Repair Stations . | . . . . Recycling Units 4 | . 4 . . Scanalyzers . | . . . . Garrison Access . | . . . . Terminal Hacks 8 | . 7 1 . Prototype ID Bank 3 | . 3 . . Branch Access Points 1 | . 1 . . Unreport Threat 1 | . 1 . . Locate Traps 2 | . 2 . . Proto ID Catalog 1 | . . 1 . Fabricator Hacks . | . . . . Repair Station Hacks . | . . . . Recycling Unit Hacks 2 | . 2 . . Retrieve Components 2 | . 2 . . Scanalyzer . | . . . . Garrison Access Hacks . | . . . . Unauthorized Hacks 1 | . 1 . . Terminals . | . . . . Fabricators . | . . . . Repair Stations . | . . . . Recycling Units 1 | . 1 . . Reject 1 | . 1 . . Scanalyzers . | . . . . Garrison Access . | . . . . Data Cores Recovered . | . . . . Used . | . . . . Hacking Detections 5 | . 5 . . Full Trace Events 1 | . 1 . . Feedback Events . | . . . . Feedback Blocked . | . . . . Robot Schematics Acquired . | . . . . Robots Built . | . . . . Authchips . | . . . . Time . | . . . . Total Robot Build Rating . | . . . . Part Schematics Acquired . | . . . . Parts Built . | . . . . Authchips . | . . . . Time . | . . . . Total Part Build Rating . | . . . . Part Studies Acquired . | . . . . Parts Repaired . | . . . . Time . | . . . . Parts Recycled . | . . . . Recycled Matter . | . . . . Retrieved Matter . | . . . . Retrieved Components 12 | . 12 . . Parts Scanalyzed . | . . . . Part Schematics Acquired . | . . . . Parts Damaged . | . . . . Bothacking | -11 -10 -10 -7 ------------ Run | Yrd Mat Sub Rec Used RIF Installer . | . . . . Robots Hacked . | . . . . Non-combat . | . . . . Combat . | . . . . Robot Hacks Applied . | . . . . Relay Couplers Released . | . . . . Fabnet Peak Effective % . | . . . . Robots Rewired . | . . . . Allies Hacked . | . . . . Hacks Repelled . | . . . . Allies | -11 -10 -10 -7 -------- Run | Yrd Mat Sub Rec Total Allies . | . . . . Largest Group . | . . . . Highest-Rated Group . | . . . . Highest-Rated Ally . | . . . . Total Orders . | . . . . Ally Attacks . | . . . . Total Damage . | . . . . Kills . | . . . . Allies Corrupted . | . . . . Allies Melted . | . . . . Intel | -11 -10 -10 -7 ------- Run | Yrd Mat Sub Rec Active Infowar (turns) 22 | . 22 . . T.N.C. 22 | . 22 . . Robot Analysis Total . | . . . . Derelict Logs Recovered 2 | . . 2 . Drone Launches . | . . . . Drone Recoveries . | . . . . Exploration | -11 -10 -10 -7 ------------- Run | Yrd Mat Sub Rec Turns Passed 4218 | 58 1381 2751 28 Spaces Moved 2650 | 37 833 1779 1 Core 4 | 4 . . . Treads 381 | . 157 224 . Legs 709 | 33 676 . . Wheels 1556 | . . 1555 1 Hover . | . . . . Flight . | . . . . Fastest Speed 50 | 50 120 130 130 Average Speed 133 | 116 127 136 130 Slowest Speed 240 | 190 160 240 130 Overloaded Moves . | . . . . Propulsion Burnouts . | . . . . Robots Hopped . | . . . . Potential Cave-ins . | . . . . Cave-ins Triggered . | . . . . Exploration Rate (%) 47 | 4 95 89 1 Regions Visited 3 Branch Regions 2 Pre-discovered Areas 2 | . . 2 . Known Exits Taken . | . . . . Unknown Exits Taken 3 | 1 1 1 . Scrap Searched 3 | . . 3 . Spaces Dug 14 | . . 14 . Terrain Destroyed 63 | . . 62 1 Melee . | . . . . Projectile 17 | . . 16 1 AOE 46 | . . 46 . Terrain Rammed . | . . . . Walls Destroyed . | . . . . Machines Disabled . | . . . . Actions | -11 -10 -10 -7 --------- Run | Yrd Mat Sub Rec Total 3065 | 49 1022 1982 12 Wait 108 | . 60 47 1 Move 2647 | 36 832 1778 1 Hop . | . . . . Pick Up 49 | 6 20 23 . Fast Attach 12 | 6 5 1 . Attach 1 | . . . 1 Detach . | . . . . Swap 31 | . 11 20 . Drop 48 | . 20 28 . Fire 163 | . 69 85 9 Melee . | . . . . Ram . | . . . . Kick 6 | 1 5 . . Crush . | . . . . Escape Stasis . | . . . . Rewire . | . . . . Trap . | . . . . Miscellaneous . | . . . . Route ------- -11/Scrapyard -10/Materials (discovered 5 exits: [*Mat x3] / *Min / *Sub) -10/Subcaves (discovered 2 exits: [*Mat] / [*Rec]) -7/Recycling History --------- Turn | Location | Event 19 | -11/Scrapyard | Discovered new exit (range 16) 59 | -11/Scrapyard | Entered Materials 271 | -10/Materials | Discovered new exit (range 4) 329 | -10/Materials | Build established: Mutant 591 | -10/Materials | Discovered new exit (range 15) 998 | -10/Materials | Discovered new exit (range 16) 1356 | -10/Materials | Discovered new exit (range 8) 1401 | -10/Materials | Identified exit to Mines 1424 | -10/Materials | Discovered new exit (range 7) 1440 | -10/Materials | Entered Subcaves 1454 | -10/Subcaves | Learned location of Zion (-6) 1454 | -10/Subcaves | Met a Zionite searching for "candidates" 1942 | -10/Subcaves | Shifting Twisted Machinery released Sub. Optics 1967 | -10/Subcaves | Shifting Twisted Machinery released Spk. Treads 2326 | -10/Subcaves | Disturbed a concealed Subdweller 2336 | -10/Subcaves | Disturbed a concealed Subdweller 2350 | -10/Subcaves | Learned Materials stockpile data 2780 | -10/Subcaves | Core integrity fell below 50% 2908 | -10/Subcaves | Visited 4L-MR0's lab 2919 | -10/Subcaves | Found Prototype Special Melee Weapon 3118 | -10/Subcaves | Build established: Scavenger-Mutant 3339 | -10/Subcaves | A swath of the cavern ceiling suddenly collapsed 3421 | -10/Subcaves | Discovered new exit (range 4) 3676 | -10/Subcaves | Discovered new exit (range 14) 3691 | -10/Subcaves | Build established: Mutant 3891 | -10/Subcaves | A swath of the cavern ceiling suddenly collapsed 4191 | -10/Subcaves | Entered Recycling 4197 | -7/Recycling | Core integrity fell below 20% 4219 | -7/Recycling | Destroyed by Y-54 Guardian with Flak Gun Last Messages --------------- 03942_ System corrupted: FCS attempts to trigger Sub. Beam Cannon. 03942_ System corrupted: Sub. Beam Cannon misfires. 04013_ System corrupted: Imp. Light Cannon fused. 04061_ System corrupted: Matter fused (-7). 04144_ HBWQDMKV,SM HJQK76XXA>DS1&Q7H1NY >PI0 04185_ Acquired 2 matter. LOCATION=UNKNOWN GOAL=ESCAPE 04195_ Y-54 Guardian springs to life. 04198_ System corrupted: Matter fused (-8). 04209_ Sub. Beam Cannon destroyed. 04215_ Y-54 Guardian heat short circuits Lgt. Treads. 04218_ Y-54 Guardian suffers critical hit (Blast). 04218_ Destroyed Imp. Heat Sink. 04219_ Sub. Monowheel destroyed. Map ----- +----------------------------------------------------+ | | | | | ????????????????????????????? | | ????????????????????????????? | | ????????????????????????????? | | ????????????????????????????? | | ????????????????????????????? | | ????????????????????????????? | | ????????????????????????????? | | ????????????????????????????? | | ????????????????????????????? | | ????????????????????????????? | | ????????????????????????????? | | ????????????????????????????? | | ????????????????????????????? | | ????????????????????????????? | | ????????????????????????????? | | ????????????????????????????? | | ????????????????????????????? | | ????????????????????????????? | | ????????????????????????????? | | ????????????????????????????? | | ?#####??????????????????????? | | ?# #??????????????????????? | | ?# #??????????????????????? | | ?# @#??????????????????????? | | ?# #??????????????????????? | | ?# #??????????????????????? | | ?;% +??????????????????????? | | ##Y #??????????????????????? | | ? #??????????????????????? | | ?#% #??????????????????????? | | ?# #??????????????????????? | | ?# #??????????????????????? | | ?# #??????????????????????? | | ?# #??????????????????????? | | ?# #??????????????????????? | | ?# ???????????????????????? | | ?# ???????????????????????? | | ?# ???????????????????????? | | ?? ???????????????????????? | | ????????????????????????????? | | ????????????????????????????? | | ????????????????????????????? | | ????????????????????????????? | | ????????????????????????????? | | ????????????????????????????? | | ????????????????????????????? | | ????????????????????????????? | | ????????????????????????????? | +----------------------------------------------------+ Best States ------------- Heat Dissipation 25 Energy Generation 15 Energy Capacity 250 Matter Stores 300 Matter Capacity 300 Sight Range 16 Terrain Scan Density 10 Core Shielding 20 Evasion (%) 55 Recoil Reduction 2 Item Schematics ----------------- None Robot Schematics ------------------ None Fabricated ------------ Nothing Repaired ---------- Nothing Studied --------- None Alien Tech Used ----------------- None Achievements -------------- None Challenges ------------ None Game ------ Seed DefenseSuperdenseCoupler Manual? 0 Play Time 00:25:29 Cumulative 459.5 hours Start 2026.02.15 @ 07:18:21 End 2026.02.15 @ 07:45:25 Sessions 1 Manual Loads 0 Difficulty Rogue Special Mode None Game No. 223 Rogue 223 Adventurer 0 Explorer 0 Win Type - Total 13 Types 9/0/2/0/0/0/0/1/0/1 Lore% 85 Gallery% 79 Achievement% 62 Wizard Run 0 Options --------- Layout 1 ASCII 0 Keyboard 0 Movement Mouse Keybinds 0 Fullscreen 1 Font 24/Smallcaps Map View 50x35 Zoom Use 0% Tactical HUD 1 Map Filters NONE Filters NONE Steam 1 RUN: 6e70cd3e-25b4-4dbd-acc9-381a8cb20262